fUSD/lending_fUSD_20240425
["ID","MTS","AMOUNT","RATE_DAILY","PERIOD"]
[323567758,1714087846702,-500.0,0.00010958,2]
[323567759,1714087846712,-477.61792215,0.00010958,2]
[323567760,1714087846723,-1898.53,0.00010958,2]
[323567761,1714087846733,-507.61,0.00010958,2]
[323567762,1714087846743,-764.83,0.00010958,2]
[323567763,1714087846758,-500.0,0.00010958,2]
[323567764,1714087846769,-500.0,0.00010958,2]
[323567765,1714087846779,-500.0,0.00010958,2]
[323567766,1714087846789,-500.0,0.00010958,2]
[323567767,1714087846799,-500.0,0.00010958,2]
[323567768,1714087846809,-186.79164523,0.00010958,2]
[323567769,1714087846819,-970.93,0.00010958,2]
[323567770,1714087846829,-500.0,0.00010958,2]
[323567771,1714087846838,-500.0,0.00010958,2]
[323567772,1714087846848,-500.0,0.00010958,2]
[323567773,1714087846858,-1231.83,0.00010958,2]
[323567774,1714087846868,-500.0,0.00010958,2]
[323567775,1714087846878,-503.75,0.00010958,2]
[323567776,1714087846888,-500.0,0.00010958,2]
[323567777,1714087846899,-1057.21,0.00010958,2]
[323567778,1714087846908,-500.0,0.00010958,2]
[323567779,1714087846918,-17729.1,0.00010958,2]
[323567780,1714087846928,-500.0,0.00010958,2]
[323567781,1714087846939,-500.0,0.00010958,2]
[323567782,1714087846950,-630.85,0.00010958,2]
[323567783,1714087846962,-3191.64,0.00010958,2]
[323567784,1714087846976,-932.44,0.00010958,2]
[323567785,1714087846991,-500.0,0.00010958,2]
[323567786,1714087847008,-500.0,0.00010958,2]
[323567787,1714087847022,-500.0,0.00010958,2]
[323567788,1714087847033,-500.0,0.00010958,2]
[323567789,1714087847048,-500.0,0.00010958,2]
[323567790,1714087847062,-500.0,0.00010958,2]
[323567791,1714087847076,-500.0,0.00010958,2]
[323567792,1714087847089,-512.62413243,0.00010958,2]
[323567793,1714087847101,-1393.76,0.00010958,2]
[323567794,1714087847114,-500.0,0.00010958,2]
[323567795,1714087847127,-500.0,0.00010958,2]
[323567796,1714087847141,-500.0,0.00010958,2]
[323567797,1714087847154,-1797.67,0.00010958,2]
[323567798,1714087847168,-2894.38,0.00010958,2]
[323567799,1714087847179,-685.61,0.00010958,2]
[323567800,1714087847193,-500.0,0.00010958,2]
[323567801,1714087847206,-500.0,0.00010958,2]
[323567802,1714087847220,-596.95,0.00010958,2]
[323567803,1714087847234,-500.0,0.00010958,2]
[323567804,1714087847249,-625.31,0.00010958,2]
[323567805,1714087847263,-500.0,0.00010958,2]
[323567806,1714087847276,-500.0,0.00010958,2]
[323567807,1714087847290,-500.0,0.00010958,2]
[323567808,1714087847304,-500.0,0.00010958,2]
[323567809,1714087847318,-581.39,0.00010958,2]
[323567810,1714087847333,-1093.84,0.00010958,2]
[323567811,1714087847345,-500.0,0.00010958,2]
[323567812,1714087847357,-951.66,0.00010958,2]
[323567813,1714087847370,-500.0,0.00010958,2]
[323567814,1714087847383,-500.0,0.00010958,2]
[323567815,1714087847397,-500.0,0.00010958,2]
[323567816,1714087847409,-500.0,0.00010958,2]
[323567817,1714087847421,-500.0,0.00010958,2]
[323567818,1714087847433,-996.23,0.00010958,2]
[323567819,1714087847444,-500.0,0.00010958,2]
[323567820,1714087847456,-610.02,0.00010958,2]
[323567821,1714087847468,-500.0,0.00010958,2]
[323567822,1714087847480,-500.0,0.00010958,2]
[323567824,1714087847492,-500.0,0.00010958,2]
[323567825,1714087847504,-500.0,0.00010958,2]
[323567826,1714087847518,-500.0,0.00010958,2]
[323567827,1714087847530,-500.0,0.00010958,2]
[323567828,1714087847542,-500.0,0.00010958,2]
[323567829,1714087847554,-678.85,0.00010958,2]
[323567830,1714087847566,-1932.77,0.00010958,2]
[323567831,1714087847578,-500.0,0.00010958,2]
[323567832,1714087847590,-500.0,0.00010958,2]
[323567833,1714087847621,-500.0,0.00010958,2]
[323567834,1714087847638,-500.0,0.00010958,2]
[323567835,1714087847650,-586.92,0.00010958,2]
[323567836,1714087847663,-972.5,0.00010958,2]
[323567837,1714087847676,-8383.29,0.00010958,2]
[323567838,1714087847691,-500.0,0.00010958,2]
[323567839,1714087847704,-500.0,0.00010958,2]
[323567840,1714087847717,-734.55,0.00010958,2]
[323567841,1714087847735,-500.0,0.00010958,2]
[323567842,1714087847748,-500.0,0.00010958,2]
[323567843,1714087847760,-3544.9,0.00010958,2]
[323567844,1714087847772,-707.12,0.00010958,2]
[323567845,1714087847785,-500.0,0.00010958,2]
[323567846,1714087847798,-508.90198079,0.00010958,2]
[323567847,1714087847812,-545.24,0.00010958,2]
[323567848,1714087847824,-500.0,0.00010958,2]
[323567849,1714087847836,-1195.08,0.00010958,2]
[323567850,1714087847849,-500.0,0.00010958,2]
[323567851,1714087847861,-500.0,0.00010958,2]
[323567852,1714087847872,-500.0,0.00010958,2]
[323567853,1714087847885,-500.0,0.00010958,2]
[323567854,1714087847898,-690.24,0.00010958,2]
[323567855,1714087847910,-500.0,0.00010958,2]
[323567856,1714087847922,-503.93929216,0.00010958,2]
[323567857,1714087847934,-554.5,0.00010958,2]
[323567858,1714087847947,-500.0,0.00010958,2]
[323567859,1714087847960,-500.0,0.00010958,2]
[323567860,1714087847972,-500.0,0.00010958,2]
[323567861,1714087847984,-500.0,0.00010958,2]
[323567862,1714087847996,-500.0,0.00010958,2]
[323567863,1714087848011,-4672.05,0.00010958,2]
[323567864,1714087848024,-500.0,0.00010958,2]
[323567865,1714087848037,-540.18,0.00010958,2]
[323567866,1714087848049,-500.0,0.00010958,2]
[323567867,1714087848062,-500.0,0.00010958,2]
[323567868,1714087848075,-970.32,0.00010958,2]
[323567869,1714087848087,-500.0,0.00010958,2]
[323567870,1714087848100,-3464.87,0.00010958,2]
[323567871,1714087848111,-500.0,0.00010958,2]
[323567872,1714087848124,-5299.98,0.00010958,2]
[323567873,1714087848136,-500.0,0.00010958,2]
[323567874,1714087848148,-500.0,0.00010958,2]
[323567875,1714087848161,-500.0,0.00010958,2]
[323567876,1714087848173,-1894.72,0.00010958,2]
[323567877,1714087848187,-500.0,0.00010958,2]
[323567878,1714087848200,-500.0,0.00010958,2]
[323567879,1714087848212,-500.0,0.00010958,2]
[323567880,1714087848225,-572.75,0.00010958,2]
[323567881,1714087848238,-1092.74,0.00010958,2]
[323567882,1714087848251,-749.4,0.00010958,2]
[323567883,1714087848264,-500.0,0.00010958,2]
[323567884,1714087848278,-500.0,0.00010958,2]
[323567885,1714087848290,-506.58555054,0.00010958,2]
[323567886,1714087848303,-500.0,0.00010958,2]
[323567887,1714087848316,-500.0,0.00010958,2]
[323567888,1714087848329,-500.0,0.00010958,2]
[323567889,1714087848342,-500.0,0.00010958,2]
[323567890,1714087848357,-507.01,0.00010958,2]
[323567891,1714087848370,-500.0,0.00010958,2]
[323567892,1714087848384,-1615.31,0.00010958,2]
[323567893,1714087848397,-500.0,0.00010958,2]
[323567894,1714087848411,-500.0,0.00010958,2]
[323567895,1714087848424,-500.0,0.00010958,3]
[323567896,1714087848437,-500.0,0.00010958,3]
[323567897,1714087848451,-500.0,0.00010958,3]
[323567898,1714087848463,-500.0,0.00010958,3]
[323567899,1714087848475,-500.0,0.00010958,2]
[323567900,1714087848487,-3926.02,0.00010958,2]
[323567901,1714087848499,-500.0,0.00010958,3]
[323567902,1714087848514,-500.0,0.00010958,3]
[323567903,1714087848527,-500.0,0.00010958,3]
[323567904,1714087848540,-500.0,0.00010958,2]
[323567905,1714087848552,-605.77,0.00010958,2]
[323567906,1714087848567,-1013.07,0.00010958,2]
[323567907,1714087848580,-500.0,0.00010958,3]
[323567908,1714087848592,-500.0,0.00010958,3]
[323567909,1714087848605,-500.0,0.00010958,3]
[323567910,1714087848618,-500.0,0.00010958,3]
[323567911,1714087848631,-500.0,0.00010958,3]
[323567912,1714087848643,-318.14,0.00010958,3]
[323567913,1714087848656,-1038.07,0.00010958,2]
[323567914,1714087848669,-1406.82,0.00010958,2]
[323567915,1714087848685,-500.0,0.00010958,2]
[323567916,1714087848698,-701.26,0.00010958,2]
[323567917,1714087848711,-500.0,0.00010958,2]
[323567918,1714087848724,-500.0,0.00010958,2]
[323567919,1714087848738,-500.0,0.00010958,2]
[323567920,1714087848751,-500.0,0.00010958,2]
[323567921,1714087848766,-441.32347288,0.00010958,2]
[323567922,1714087848779,-500.0,0.00010958,2]
[323567923,1714087848792,-577.47,0.00010958,2]
[323567924,1714087848804,-333.67587635,0.00010958,2]
[323567925,1714087848817,-1401.53,0.00010958,2]
[323567926,1714087848830,-860.6,0.00010958,2]
[323567927,1714087848842,-683.85,0.00010958,2]
[323567928,1714087848856,-500.0,0.00010958,2]
[323567929,1714087848868,-549.58,0.00010958,2]
[323567930,1714087848881,-1187.74,0.00010958,2]
[323567931,1714087848893,-500.0,0.00010958,2]
[323567932,1714087848905,-500.0,0.00010958,2]
[323567933,1714087848918,-500.0,0.00010958,2]
[323567934,1714087848931,-2010.41,0.00010958,2]
[323567935,1714087848944,-1782.53,0.00010958,2]
[323567936,1714087848957,-796.52,0.00010958,2]
[323567937,1714087848970,-917.5,0.00010958,2]
[323567938,1714087848982,-500.0,0.00010958,2]
[323567939,1714087848993,-500.0,0.00010958,2]
[323567940,1714087849005,-500.0,0.00010958,2]
[323567941,1714087849017,-1204.82,0.00010958,2]
[323567942,1714087849029,-500.0,0.00010958,2]
[323567943,1714087849040,-500.0,0.00010958,2]
[323567944,1714087849052,-500.0,0.00010958,2]
[323567945,1714087849066,-1716.12,0.00010958,2]
[323567946,1714087849079,-500.0,0.00010958,2]
[323567947,1714087849091,-710.34,0.00010958,2]
[323567948,1714087849105,-500.0,0.00010958,2]
[323567949,1714087849118,-500.0,0.00010958,2]
[323567950,1714087849131,-792.09,0.00010958,2]
[323567951,1714087849145,-500.0,0.00010958,2]
[323567952,1714087849157,-500.0,0.00010958,2]
[323567953,1714087849170,-542.94,0.00010958,2]
[323567954,1714087849182,-3357.68,0.00010958,2]
[323567955,1714087849193,-500.0,0.00010958,2]
[323567956,1714087849205,-500.0,0.00010958,2]
[323567957,1714087849217,-2748.61,0.00010958,2]
[323567958,1714087849228,-2200.4,0.00010958,2]
[323567959,1714087849240,-150.72076542,0.00010958,2]
[323567960,1714087849252,-500.0,0.00010958,2]
[323567961,1714087849263,-500.0,0.00010958,2]
[323567962,1714087849274,-500.0,0.00010958,2]
[323567963,1714087849286,-500.0,0.00010958,2]
[323567964,1714087849297,-500.0,0.00010958,2]
[323567965,1714087849309,-500.0,0.00010958,2]
[323567966,1714087849320,-706.0,0.00010958,2]
[323567967,1714087849332,-647.56,0.00010958,2]
[323567968,1714087849344,-500.0,0.00010958,2]
[323567969,1714087849357,-500.0,0.00010958,2]
[323567970,1714087849368,-500.0,0.00010958,2]
[323567971,1714087849379,-500.0,0.00010958,2]
[323567972,1714087849390,-500.0,0.00010958,2]
[323567973,1714087849402,-1319.76,0.00010958,2]
[323567974,1714087849413,-500.0,0.00010958,2]
[323567975,1714087849424,-4069.1,0.00010958,2]
[323567976,1714087849435,-500.0,0.00010958,2]
[323567977,1714087849447,-629.06,0.00010958,2]
[323567978,1714087849458,-500.0,0.00010958,2]
[323567979,1714087849469,-500.0,0.00010958,2]
[323567980,1714087849481,-541.43,0.00010958,2]
[323567981,1714087849493,-500.0,0.00010958,2]
[323567982,1714087849505,-500.0,0.00010958,2]
[323567983,1714087849516,-4179.55,0.00010958,2]
[323567984,1714087849527,-1360.31,0.00010958,2]
[323567985,1714087849538,-500.0,0.00010958,2]
[323567986,1714087849549,-2811.0,0.00010958,2]
[323567987,1714087849560,-501.71607814,0.00010958,2]
[323567988,1714087849570,-500.0,0.00010958,2]
[323567989,1714087849581,-500.0,0.00010958,2]
[323567990,1714087849592,-500.0,0.00010958,2]
[323567991,1714087849602,-500.0,0.00010958,2]
[323567992,1714087849613,-500.0,0.00010958,2]
[323567993,1714087849625,-500.0,0.00010958,2]
[323567994,1714087849637,-500.0,0.00010958,2]
[323567995,1714087850020,-500.0,0.00010958,2]
[323567996,1714087850048,-501.6464326,0.00010958,2]
[323567997,1714087850067,-10000.0,0.00010959,2]
[323567998,1714087850077,-150.0,0.00010959,2]
[323567999,1714087850086,-2000.0,0.00010959,3]
[323568000,1714087850095,-2297.4,0.00010959,2]
[323568001,1714087850105,-333.07813519,0.00010995,2]
[323568002,1714087850114,-749.63590295,0.00011,2]
[323568003,1714087850123,-1284.26822,0.00011,2]
[323568004,1714087850133,-160.5,0.00011,3]
[323568005,1714087850142,-233.25,0.00011119,2]
[323568006,1714087850151,-3167.66022679,0.00011131,2]
[323568007,1714087850160,-168.52611107,0.00011132,2]
[323568008,1714087850169,-150.00799354,0.00011132,2]
[323568009,1714087850178,-333.07813519,0.00011132,2]
[323568010,1714087850187,-603.08005336,0.0001123,2]
[323568011,1714087850197,-208.20177784,0.0001123,2]
[323568012,1714087850206,-93453.92572652,0.00011231,2]
[323568013,1714087850215,-249.7320373,0.00011231,2]
[323568014,1714087850224,-179.7000076,0.00011232,2]
[323568015,1714087850233,-408.61554877,0.00011232,2]
[323568016,1714087850243,-408.61554877,0.00011232,2]
[323568017,1714087850252,-500.0,0.00011232,2]
[323568018,1714087850261,-1018.66,0.00011232,2]
[323568019,1714087850270,-504.81595364,0.00011232,2]
[323568020,1714087850279,-525.95,0.00011232,2]
[323568021,1714087850288,-500.0,0.00011232,2]
[323568022,1714087850297,-500.0,0.00011232,2]
[323568023,1714087850306,-500.0,0.00011232,2]
[323568024,1714087850315,-500.0,0.00011232,2]
[323568025,1714087850324,-500.0,0.00011232,2]
[323568026,1714087850333,-500.0,0.00011232,2]
[323568027,1714087850342,-500.0,0.00011232,2]
[323568028,1714087850351,-500.0,0.00011232,2]
[323568029,1714087850360,-500.0,0.00011232,2]
[323568030,1714087850369,-500.0,0.00011232,2]
[323568031,1714087850378,-500.0,0.00011232,2]
[323568032,1714087850387,-500.0,0.00011232,2]
[323568033,1714087850397,-500.0,0.00011232,2]
[323568034,1714087850405,-500.0,0.00011232,2]
[323568035,1714087850415,-500.0,0.00011232,2]
[323568036,1714087850424,-530.5,0.00011232,2]
[323568037,1714087850433,-500.0,0.00011232,2]
[323568038,1714087850442,-500.0,0.00011232,2]
[323568039,1714087850451,-502.57922202,0.00011232,2]
[323568040,1714087850461,-500.0,0.00011232,2]
[323568041,1714087850469,-500.0,0.00011232,2]
[323568042,1714087850478,-1261.63,0.00011232,2]
[323568043,1714087850487,-500.0,0.00011232,2]
[323568044,1714087850497,-570.44,0.00011232,2]
[323568045,1714087850507,-500.0,0.00011232,2]
[323568046,1714087850516,-500.0,0.00011232,2]
[323568047,1714087850526,-500.0,0.00011232,2]
[323568048,1714087850535,-500.0,0.00011232,2]
[323568049,1714087850545,-500.0,0.00011232,2]
[323568050,1714087850554,-500.0,0.00011232,2]
[323568051,1714087850563,-500.0,0.00011232,2]
[323568052,1714087850572,-500.0,0.00011232,2]
[323568053,1714087850581,-500.0,0.00011232,2]
[323568054,1714087850590,-500.0,0.00011232,2]
[323568055,1714087850600,-500.0,0.00011232,2]
[323568056,1714087850609,-500.0,0.00011232,2]
[323568057,1714087850619,-500.0,0.00011232,2]
[323568058,1714087850628,-500.0,0.00011232,2]
[323568059,1714087850637,-500.0,0.00011232,2]
[323568060,1714087850647,-500.0,0.00011232,2]
[323568061,1714087850656,-500.0,0.00011232,2]
[323568062,1714087850665,-500.0,0.00011232,2]
[323568063,1714087850674,-500.0,0.00011232,2]
[323568064,1714087850688,-157.08,0.00011232,2]
[323568065,1714087850698,-1255.99,0.00011232,2]
[323568066,1714087850707,-500.0,0.00011232,2]
[323568067,1714087850716,-500.0,0.00011232,2]
[323568068,1714087850726,-500.0,0.00011232,2]
[323568069,1714087850735,-500.0,0.00011232,2]
[323568070,1714087850745,-500.0,0.00011232,2]
[323568071,1714087850755,-500.0,0.00011232,2]
[323568072,1714087850765,-259.37872882,0.00011232,2]
[323568073,1714087850774,-503.36692324,0.00011232,2]
[323568074,1714087850783,-500.0,0.00011232,2]
[323568075,1714087850792,-500.0,0.00011232,2]
[323568076,1714087850801,-500.0,0.00011232,2]
[323568077,1714087850811,-500.0,0.00011232,2]
[323568078,1714087850819,-500.0,0.00011232,2]
[323568079,1714087850829,-500.0,0.00011232,2]
[323568080,1714087850838,-500.0,0.00011232,2]
[323568081,1714087850848,-626.78336201,0.00011232,2]
[323568082,1714087850857,-500.0,0.00011232,2]
[323568083,1714087850866,-500.0,0.00011232,2]
[323568084,1714087850875,-500.0,0.00011232,2]
[323568085,1714087850884,-500.0,0.00011232,2]
[323568086,1714087850894,-500.0,0.00011232,2]
[323568087,1714087850903,-500.0,0.00011232,2]
[323568088,1714087850913,-500.0,0.00011232,2]
[323568089,1714087850922,-500.0,0.00011232,2]
[323568090,1714087850932,-500.0,0.00011232,2]
[323568091,1714087850942,-500.0,0.00011232,2]
[323568092,1714087850951,-1304.86,0.00011232,2]
[323568093,1714087850961,-500.0,0.00011232,2]
[323568094,1714087850970,-500.0,0.00011232,2]
[323568095,1714087850980,-500.0,0.00011232,2]
[323568096,1714087850989,-500.0,0.00011232,2]
[323568097,1714087850999,-1231.2,0.00011232,2]
[323568098,1714087851009,-500.0,0.00011232,2]
[323568099,1714087851018,-500.0,0.00011232,2]
[323568100,1714087851028,-500.0,0.00011232,2]
[323568101,1714087851037,-500.0,0.00011232,2]
[323568102,1714087851047,-500.0,0.00011232,2]
[323568103,1714087851056,-500.0,0.00011232,2]
[323568104,1714087851065,-500.0,0.00011232,2]
[323568105,1714087851075,-500.0,0.00011232,2]
[323568106,1714087851084,-500.0,0.00011232,2]
[323568107,1714087851093,-500.0,0.00011232,2]
[323568108,1714087851103,-500.0,0.00011232,2]
[323568109,1714087851112,-500.0,0.00011232,2]
[323568110,1714087851122,-500.0,0.00011232,2]
[323568111,1714087851131,-500.0,0.00011232,2]
[323568112,1714087851140,-500.0,0.00011232,2]
[323568113,1714087851150,-500.0,0.00011232,2]
[323568114,1714087851159,-500.0,0.00011232,2]
[323568115,1714087851168,-500.0,0.00011232,2]
[323568116,1714087851178,-500.0,0.00011232,2]
[323568117,1714087851188,-500.0,0.00011232,2]
[323568118,1714087851198,-500.0,0.00011232,2]
[323568119,1714087851208,-500.0,0.00011232,2]
[323568120,1714087851218,-500.0,0.00011232,2]
[323568121,1714087851228,-500.0,0.00011232,2]
[323568122,1714087851237,-500.0,0.00011232,2]
[323568123,1714087851247,-500.0,0.00011232,2]
[323568124,1714087851257,-500.0,0.00011232,2]
[323568125,1714087851267,-500.0,0.00011232,2]
[323568126,1714087851276,-500.0,0.00011232,2]
[323568127,1714087851286,-500.0,0.00011232,2]
[323568128,1714087851295,-1160.86,0.00011232,2]
[323568129,1714087851305,-500.0,0.00011232,2]
[323568130,1714087851315,-500.0,0.00011232,2]
[323568131,1714087851325,-500.0,0.00011232,2]
[323568132,1714087851335,-500.0,0.00011232,2]
[323568133,1714087851345,-500.0,0.00011232,2]
[323568134,1714087851354,-500.0,0.00011232,2]
[323568135,1714087851364,-500.0,0.00011232,2]
[323568136,1714087851373,-1263.12,0.00011232,2]
[323568137,1714087851383,-500.0,0.00011232,2]
[323568138,1714087851393,-500.0,0.00011232,2]
[323568139,1714087851403,-500.0,0.00011232,2]
[323568140,1714087851413,-500.0,0.00011232,2]
[323568141,1714087851422,-500.0,0.00011232,2]
[323568142,1714087851432,-150.0,0.00011232,2]
[323568143,1714087851442,-500.0,0.00011232,2]
[323568144,1714087851451,-500.0,0.00011232,2]
[323568145,1714087851461,-500.0,0.00011232,2]
[323568146,1714087851471,-163.14302258,0.00011232,2]
[323568147,1714087851481,-500.0,0.00011232,2]
[323568148,1714087851491,-500.0,0.00011232,2]
[323568149,1714087851501,-1067.82,0.00011232,2]
[323568150,1714087851511,-440.73930578,0.00011232,2]
[323568151,1714087851520,-500.0,0.00011232,2]
[323568152,1714087851530,-500.0,0.00011232,2]
[323568153,1714087851540,-500.0,0.00011232,2]
[323568154,1714087851549,-500.0,0.00011232,2]
[323568155,1714087851558,-500.0,0.00011232,2]
[323568156,1714087851568,-500.0,0.00011232,2]
[323568157,1714087851578,-500.0,0.00011232,2]
[323568158,1714087851587,-500.0,0.00011232,2]
[323568159,1714087851597,-500.0,0.00011232,2]
[323568160,1714087851607,-500.0,0.00011232,2]
[323568161,1714087851616,-500.0,0.00011232,2]
[323568162,1714087851626,-500.0,0.00011232,2]
[323568163,1714087851635,-500.0,0.00011232,2]
[323568164,1714087851645,-500.0,0.00011232,2]
[323568165,1714087851654,-500.0,0.00011232,2]
[323568166,1714087851663,-500.0,0.00011232,2]
[323568167,1714087851673,-554.37,0.00011232,2]
[323568168,1714087851684,-500.0,0.00011232,2]
[323568169,1714087851693,-500.0,0.00011232,2]
[323568170,1714087851703,-500.0,0.00011232,2]
[323568171,1714087851712,-500.0,0.00011232,2]
[323568172,1714087851722,-500.0,0.00011232,2]
[323568173,1714087851731,-500.0,0.00011232,2]
[323568174,1714087851741,-653.05,0.00011232,2]
[323568175,1714087851750,-500.0,0.00011232,2]
[323568176,1714087851763,-500.0,0.00011232,2]
[323568177,1714087851774,-500.0,0.00011232,2]
[323568178,1714087851784,-500.0,0.00011232,2]
[323568179,1714087851794,-858.21,0.00011232,2]
[323568180,1714087851804,-789.88,0.00011232,2]
[323568181,1714087851813,-500.0,0.00011232,2]
[323568182,1714087851823,-500.0,0.00011232,2]
[323568183,1714087851832,-500.0,0.00011232,2]
[323568184,1714087851842,-500.0,0.00011232,2]
[323568185,1714087851852,-500.0,0.00011232,2]
[323568186,1714087851861,-500.0,0.00011232,2]
[323568187,1714087851871,-500.0,0.00011232,2]
[323568188,1714087851880,-500.0,0.00011232,2]
[323568189,1714087851890,-500.0,0.00011232,2]
[323568190,1714087851899,-500.0,0.00011232,2]
[323568191,1714087851908,-500.0,0.00011232,2]
[323568192,1714087851918,-500.0,0.00011232,2]
[323568193,1714087851927,-500.0,0.00011232,2]
[323568194,1714087851937,-500.0,0.00011232,2]
[323568195,1714087851947,-500.0,0.00011232,2]
[323568196,1714087851956,-500.0,0.00011232,2]
[323568197,1714087851965,-500.0,0.00011232,2]
[323568198,1714087851975,-500.0,0.00011232,2]
[323568199,1714087851984,-500.0,0.00011232,2]
[323568200,1714087851994,-500.0,0.00011232,2]
[323568201,1714087852003,-500.0,0.00011232,2]
[323568202,1714087852013,-500.0,0.00011232,2]
[323568203,1714087852023,-500.0,0.00011232,2]
[323568204,1714087852032,-500.0,0.00011232,2]
[323568205,1714087852042,-518.52,0.00011232,2]
[323568206,1714087852051,-500.0,0.00011232,2]
[323568207,1714087852060,-500.0,0.00011232,2]
[323568208,1714087852070,-500.0,0.00011232,2]
[323568209,1714087852079,-500.0,0.00011232,2]
[323568210,1714087852088,-500.0,0.00011232,2]
[323568211,1714087852098,-614.48,0.00011232,2]
[323568212,1714087852107,-500.0,0.00011232,2]
[323568213,1714087852117,-500.0,0.00011232,2]
[323568214,1714087852127,-1297.2,0.00011232,2]
[323568215,1714087852136,-500.0,0.00011232,2]
[323568216,1714087852147,-899.5,0.00011232,2]
[323568217,1714087852156,-1323.52,0.00011232,2]
[323568218,1714087852165,-500.0,0.00011232,2]
[323568219,1714087852174,-500.0,0.00011232,2]
[323568220,1714087852183,-500.0,0.00011232,2]
[323568221,1714087852193,-542.32,0.00011232,2]
[323568222,1714087852202,-500.0,0.00011232,2]
[323568223,1714087852212,-500.0,0.00011232,2]
[323568224,1714087852221,-1254.89,0.00011232,2]
[323568225,1714087852231,-500.0,0.00011232,2]
[323568226,1714087852241,-507.01,0.00011232,2]
[323568227,1714087852250,-500.0,0.00011232,2]
[323568228,1714087852260,-500.0,0.00011232,2]
[323568229,1714087852270,-500.0,0.00011232,2]
[323568230,1714087852279,-500.0,0.00011232,2]
[323568231,1714087852289,-500.0,0.00011232,2]
[323568232,1714087852298,-500.0,0.00011232,2]
[323568233,1714087852309,-500.74,0.00011232,2]
[323568234,1714087852318,-500.0,0.00011232,2]
[323568235,1714087852328,-500.0,0.00011232,2]
[323568236,1714087852337,-500.0,0.00011232,2]
[323568237,1714087852347,-500.0,0.00011232,2]
[323568238,1714087852357,-508.67,0.00011232,2]
[323568239,1714087852367,-500.0,0.00011232,2]
[323568240,1714087852376,-500.0,0.00011232,2]
[323568241,1714087852387,-500.0,0.00011232,2]
[323568242,1714087852397,-500.0,0.00011232,2]
[323568243,1714087852406,-500.0,0.00011232,2]
[323568244,1714087852415,-510.52,0.00011232,2]
[323568245,1714087852428,-500.0,0.00011232,2]
[323568246,1714087852438,-500.0,0.00011232,2]
[323568247,1714087852448,-500.0,0.00011232,2]
[323568248,1714087852459,-500.0,0.00011232,2]
[323568249,1714087852469,-799.27,0.00011232,2]
[323568250,1714087852478,-500.0,0.00011232,2]
[323568251,1714087852487,-500.0,0.00011232,2]
[323568252,1714087852496,-500.0,0.00011232,2]
[323568253,1714087852506,-1060.99,0.00011232,2]
[323568254,1714087852516,-500.0,0.00011232,2]
[323568255,1714087852526,-500.0,0.00011232,2]
[323568256,1714087852538,-630.54,0.00011232,2]
[323568257,1714087852547,-500.0,0.00011232,2]
[323568258,1714087852556,-500.0,0.00011232,2]